bitfinex/quotes_BTCUSD_20251209
["timestamp","ask_amount","ask_price","bid_price","bid_amount"]
[1765292935843,0.57507349,90811.0,90810.0,0.00238523]
[1765292936772,0.57507349,90811.0,90750.0,0.01101928]
[1765292936773,0.57353098,90782.0,90703.0,0.0578744]
[1765292936987,0.57353098,90782.0,90704.0,0.00707165]
[1765292936988,2.30917898,90782.0,90704.0,0.00707165]
[1765292937178,2.30917898,90782.0,90671.0,0.15004981]
[1765292937179,0.23125894,90713.0,90703.0,0.01102499]
[1765292937409,0.01102341,90716.0,90706.0,0.22049016]
[1765292937410,0.01102353,90715.0,90706.0,0.22049016]
[1765292937580,0.01772,90721.0,90692.0,0.01102633]
[1765292937581,0.01102462,90706.0,90692.0,0.01102633]
[1765292937751,0.01102535,90700.0,90694.0,0.01102608]
[1765292937945,0.01102657,90690.0,90689.0,0.00020008]
[1765292938399,0.01102633,90692.0,90689.0,0.00020008]
[1765292938942,0.23155372,90692.0,90689.0,0.00020008]
[1765292939064,0.22051671,90697.0,90683.0,0.01102742]
[1765292939263,0.01082661,90689.0,90685.0,0.01102718]
[1765292939503,0.22052429,90693.0,90684.0,0.22054607]
[1765292939725,0.22055093,90682.0,90680.0,0.0002]
[1765292939905,0.01102742,90683.0,90680.0,0.0002]
[1765292940103,0.01776,90681.0,90680.0,0.0002]
[1765292940339,0.01102693,90687.0,90680.0,0.0002]
[1765292940340,0.00038422,90700.0,90687.0,0.01102693]
[1765292940542,0.00038422,90700.0,90698.0,0.22051202]
[1765292940543,0.01776,90699.0,90698.0,0.22051202]
[1765292940700,0.00038422,90700.0,90697.0,0.01102572]
[1765292940865,0.00038422,90700.0,90698.0,0.22051202]
[1765292941066,0.00038422,90700.0,90666.0,0.22058828]
[1765292941067,0.01102742,90683.0,90666.0,0.22058828]
[1765292941305,0.23157684,90683.0,90669.0,0.01102912]
[1765292941556,0.23157684,90683.0,90664.0,0.01102973]
[1765292941557,0.23318971,90683.0,90664.0,0.01102973]
[1765292941746,0.23318971,90683.0,90655.0,0.00598509]
[1765292941881,0.23318971,90683.0,90656.0,0.0110307]
[1765292941882,0.28468922,90681.0,90656.0,0.0110307]
[1765292942097,0.28468922,90681.0,90656.0,0.22061334]
[1765292942312,0.28468922,90681.0,90645.0,0.01103204]
[1765292942536,0.59314922,90681.0,90643.0,0.01103229]
[1765292942760,0.59314922,90681.0,90653.0,0.01103107]
[1765292942973,0.59314922,90681.0,90680.0,0.00405079]
[1765292943948,0.28468922,90681.0,90680.0,0.00405079]
[1765292944331,0.30244922,90681.0,90680.0,0.00405079]
[1765292945935,0.70333401,90681.0,90680.0,0.00405079]
[1765292946279,0.59314922,90681.0,90680.0,0.00405079]
[1765292947007,0.59314922,90681.0,90658.0,9e-05]
[1765292947008,0.22060688,90659.0,90658.0,9e-05]
[1765292947124,0.30088987,90659.0,90658.0,9e-05]
[1765292947857,0.59158987,90659.0,90658.0,9e-05]
[1765292948402,0.59197386,90659.0,90658.0,9e-05]
[1765292948828,0.28351386,90659.0,90658.0,9e-05]
[1765292949034,0.00038399,90659.0,90658.0,9e-05]
[1765292949241,0.01814399,90659.0,90658.0,9e-05]
[1765292950000,0.00038399,90659.0,90658.0,9e-05]
[1765292951328,0.00038399,90659.0,90658.0,0.00229545]
[1765292951738,0.00038399,90659.0,90658.0,0.29079]
[1765292952046,0.01776,90688.0,90684.0,0.0110273]
[1765292952207,0.01102693,90687.0,90684.0,0.00011573]
[1765292952437,0.22054364,90685.0,90684.0,0.00011573]
[1765292953255,0.01102693,90687.0,90684.0,0.00011573]
[1765292953468,0.0936407,90703.0,90684.0,0.00011573]
[1765292953469,0.23154433,90696.0,90693.0,0.0110262]
[1765292953808,0.01102402,90711.0,90703.0,0.2315239]
[1765292954071,0.01102402,90711.0,90701.0,0.01102523]
[1765292954072,0.01102487,90704.0,90701.0,0.23152816]
[1765292954273,0.02198998,90705.0,90702.0,0.01102511]
[1765292954483,0.02198998,90705.0,90703.0,0.23152373]
[1765292954694,0.01102377,90713.0,90708.0,0.01102438]
[1765292954939,0.01102377,90713.0,90706.0,0.01102462]
[1765292954940,0.01102353,90715.0,90709.0,0.01102426]
[1765292955148,0.01102329,90717.0,90713.0,0.01102377]
[1765292955356,0.01102317,90718.0,90715.0,0.01102353]
[1765292955578,0.01102317,90718.0,90714.0,0.01102365]
[1765292955579,0.01776,90721.0,90716.0,0.01102341]
[1765292955798,0.01776,90721.0,90714.0,0.22047298]
[1765292955799,0.22045612,90721.0,90714.0,0.22047298]
[1765292956016,0.00176708,90724.0,90722.0,0.22045202]
[1765292956226,0.0110228,90721.0,90717.0,0.01102329]
[1765292956463,0.0110228,90721.0,90717.0,0.00011573]
[1765292956464,0.01102292,90720.0,90717.0,0.00011573]
[1765292956701,0.01102292,90720.0,90717.0,0.01113902]
[1765292956903,0.01102292,90720.0,90717.0,0.00011573]
[1765292956904,0.24245096,90719.0,90717.0,0.00011573]
[1765292957133,0.22207385,90719.0,90717.0,0.00011573]
[1765292957349,0.06413586,90718.0,90717.0,0.00011573]
[1765292957776,0.08612584,90718.0,90717.0,0.00011573]
[1765292958613,0.17976654,90718.0,90717.0,0.00011573]
[1765292959433,0.13500355,90718.0,90717.0,0.00011573]
[1765292960910,0.00161287,90718.0,90717.0,0.00011573]
[1765292961141,0.01776,90720.0,90717.0,0.00011573]
[1765292961314,0.23148314,90720.0,90717.0,0.00011573]
[1765292961516,0.22046341,90718.0,90717.0,0.00011573]
[1765292961721,0.01102292,90720.0,90717.0,0.00011573]
[1765292961935,0.02198998,90720.0,90718.0,0.22046258]
[1765292962067,0.01102268,90722.0,90717.0,0.00011573]
[1765292962286,0.22046192,90719.0,90717.0,0.00011573]
[1765292962524,0.23148221,90720.0,90717.0,0.00011573]
[1765292962731,0.22046341,90718.0,90717.0,0.00011573]
[1765292963112,0.00176708,90724.0,90718.0,0.01102317]
[1765292963297,0.02878256,90723.0,90720.0,0.01102292]
[1765292963495,0.00176708,90724.0,90723.0,0.22045126]
[1765292964561,0.00176708,90724.0,90723.0,0.51115126]
[1765292966029,0.00176708,90724.0,90723.0,1.69487226]
[1765292966246,0.00176708,90724.0,90723.0,1.37821026]
[1765292966367,0.00176708,90724.0,90723.0,0.71940126]
[1765292966583,0.00176708,90724.0,90723.0,0.51115126]
[1765292967445,0.00176708,90724.0,90723.0,0.51054933]
[1765292969909,0.00176708,90724.0,90723.0,1.22777732]
[1765292970117,0.53423954,90786.0,90720.0,0.23147891]
[1765292970118,0.22036224,90760.0,90755.0,0.01101867]
[1765292970377,0.22036224,90760.0,90751.0,0.2907]
[1765292970378,0.2203788,90753.0,90751.0,0.2907]
[1765292970570,0.01101879,90754.0,90746.0,0.01101976]
[1765292970906,0.01101989,90745.0,90741.0,0.2907]
[1765292971074,0.0936407,90744.0,90726.0,0.01102219]
[1765292971269,0.0936407,90744.0,90731.0,0.01102159]
[1765292971270,0.09525357,90744.0,90731.0,0.01102159]
[1765292971474,0.09525357,90744.0,90726.0,0.00011573]
[1765292971475,0.22043965,90728.0,90726.0,0.00011573]
[1765292972260,0.02198998,90727.0,90726.0,0.00011573]
[1765292972493,0.02360285,90727.0,90726.0,0.00011573]
[1765292973516,0.09525357,90727.0,90726.0,0.00011573]
[1765292974267,0.00161287,90727.0,90726.0,0.00011573]
[1765292974426,0.01937287,90727.0,90726.0,0.00011573]
[1765292974641,0.00161287,90727.0,90726.0,0.00011573]
[1765292974845,0.09525357,90727.0,90726.0,0.00011573]
[1765292975224,0.00161287,90727.0,90726.0,0.00011573]
[1765292975433,0.23144628,90734.0,90730.0,0.23145502]
[1765292975652,0.01776,90735.0,90733.0,0.22042559]
[1765292975861,0.00094745,90756.0,90726.0,0.23158085]
[1765292975862,0.01101989,90745.0,90739.0,0.01102061]
[1765292976212,0.01102098,90736.0,90730.0,0.42547753]
[1765292976416,0.01102049,90740.0,90734.0,0.22042366]
[1765292976417,0.23144027,90737.0,90734.0,0.22042366]
[1765292976619,0.22043058,90732.0,90728.0,0.22043885]
[1765292976828,0.23144122,90736.0,90732.0,0.22042911]
[1765292976961,0.01102074,90738.0,90731.0,0.23145177]
[1765292976962,0.01102049,90740.0,90736.0,0.22041888]
[1765292977163,0.01102001,90744.0,90741.0,0.22040753]
[1765292977376,0.01102001,90744.0,90726.0,0.00011573]
[1765292977377,0.01102074,90738.0,90732.0,0.01102146]
[1765292977592,0.01776,90747.0,90743.0,0.22040267]
[1765292977806,0.22037579,90755.0,90747.0,0.22039197]
[1765292978008,0.2907,90784.0,90749.0,0.0110194]
[1765292978180,0.41545581,90790.0,90737.0,0.41445582]
[1765292978181,0.01101904,90752.0,90737.0,0.41445582]
[1765292978380,0.01101964,90747.0,90743.0,0.01102013]
[1765292978700,0.01101964,90747.0,90739.0,0.01102061]
[1765292978701,0.01102001,90744.0,90740.0,0.01102049]
[1765292978866,0.01102001,90744.0,90735.0,0.0110211]
[1765292978867,0.2204051,90742.0,90726.0,0.00011573]
[1765292979214,0.2204051,90742.0,90726.0,0.23158026]
[1765292979215,0.22043611,90730.0,90726.0,0.23158026]
[1765292979360,0.22043064,90732.0,90729.0,0.01102183]
[1765292979361,0.2204296,90732.0,90729.0,0.01102183]
[1765292980070,0.01102183,90729.0,90726.0,0.01113792]
[1765292980251,0.22044148,90728.0,90726.0,0.00011573]
[1765292981024,0.0936407,90727.0,90726.0,0.00011573]
[1765292981208,0.22044148,90728.0,90726.0,0.00011573]
[1765292981880,0.31408224,90727.0,90726.0,0.00011573]
[1765292982625,0.22044154,90727.0,90726.0,0.00011573]
[1765292982838,0.2314611,90731.0,90726.0,0.00011573]
[1765292982839,0.01102159,90731.0,90726.0,0.00011573]
[1765292983066,0.22044154,90727.0,90726.0,0.00011573]
[1765292987515,0.10466253,90729.0,90726.0,0.00011573]
[1765292987516,0.0936407,90729.0,90727.0,0.22044141]
[1765292987727,0.22044055,90728.0,90726.0,0.00011573]
[1765292988606,0.22044154,90727.0,90726.0,0.00011573]
[1765292989636,0.0936407,90729.0,90726.0,0.00011573]
[1765292989866,0.22042041,90736.0,90726.0,0.00011573]
[1765292989867,0.00023692,90732.0,90727.0,0.01102207]
[1765292990208,0.00023692,90732.0,90731.0,0.22043182]
[1765292991138,0.00023692,90732.0,90730.0,0.22043318]
[1765292991740,0.00323692,90732.0,90731.0,0.005]
[1765292991953,0.09687762,90732.0,90731.0,0.005]
[1765292992306,0.22044154,90727.0,90726.0,0.00011573]
[1765292994606,0.22344154,90727.0,90726.0,0.00511573]
[1765292995005,0.22044154,90727.0,90726.0,0.00011573]
[1765292995208,0.22344154,90727.0,90726.0,0.00511573]
[1765292996048,0.00023692,90732.0,90729.0,0.01102183]
[1765292996261,0.00023692,90732.0,90731.0,0.51113182]
[1765292998094,0.00223692,90732.0,90731.0,0.53313182]
[1765293000402,0.00223692,90732.0,90731.0,0.022]
[1765293000739,0.22427918,90732.0,90731.0,0.022]
[1765293001434,0.28296453,90727.0,90726.0,1e-08]
[1765293001631,0.67922674,90727.0,90726.0,1e-08]
[1765293001785,0.70297416,90727.0,90726.0,1e-08]
[1765293003147,2.16799916,90727.0,90726.0,1e-08]
[1765293003348,2.23255234,90727.0,90726.0,1e-08]
[1765293003530,0.22058499,90668.0,90667.0,0.00215304]
[1765293003709,0.23834499,90668.0,90667.0,0.00226838]
[1765293004081,0.01776,90668.0,90667.0,0.00226838]
[1765293004351,0.01102779,90680.0,90676.0,0.01102827]
[1765293004496,0.01102766,90681.0,90676.0,0.01102827]
[1765293004695,0.01776,90682.0,90681.0,0.22055336]
[1765293004949,0.01102693,90687.0,90684.0,0.0110273]
[1765293005091,0.01776,90686.0,90685.0,0.01102718]
[1765293005327,0.01102742,90683.0,90677.0,0.01102815]
[1765293005536,0.10466849,90680.0,90674.0,0.01102851]
[1765293005731,0.01102791,90679.0,90675.0,0.01102839]
[1765293005955,0.01102791,90679.0,90675.0,0.23159493]
[1765293006158,0.01102839,90675.0,90664.0,0.01102973]
[1765293006366,0.01102839,90675.0,90667.0,0.00226838]
[1765293006367,0.22058333,90669.0,90667.0,0.00226838]
[1765293006563,0.2221962,90669.0,90667.0,0.00226838]
[1765293007140,0.2221962,90669.0,90667.0,0.01126838]
[1765293007356,0.00161287,90669.0,90667.0,0.01126838]
[1765293007557,0.00161287,90669.0,90667.0,0.00226838]
[1765293007812,0.22219629,90669.0,90667.0,0.00826838]
[1765293007983,0.00261287,90669.0,90667.0,0.00826838]
[1765293008304,0.00161287,90669.0,90667.0,0.00226838]
[1765293008463,0.22219709,90669.0,90667.0,0.00226838]
[1765293009067,0.01102851,90674.0,90667.0,0.01329775]
[1765293009272,0.10466849,90680.0,90673.0,0.22057282]
[1765293009456,0.0936407,90700.0,90677.0,0.01102815]
[1765293009457,0.01776,90679.0,90677.0,0.01102815]
[1765293009662,0.01776,90681.0,90678.0,0.01102803]
[1765293009989,0.01776,90681.0,90679.0,0.22055808]
[1765293010200,0.01776,90681.0,90679.0,0.22055711]
[1765293010387,0.011029,90670.0,90667.0,0.00226838]
[1765293010591,0.22058499,90668.0,90667.0,0.00226838]
[1765293011532,0.31422569,90668.0,90667.0,0.00226838]
[1765293012323,0.1114007,90668.0,90667.0,0.00226838]
[1765293012678,0.11301357,90668.0,90667.0,0.00226838]
[1765293012906,0.11401357,90668.0,90667.0,0.00326838]
[1765293013112,0.11301357,90668.0,90667.0,0.00226838]
[1765293013455,0.11301357,90668.0,90667.0,0.00326838]
[1765293013456,0.11401357,90668.0,90667.0,0.00326838]
[1765293013659,0.11301357,90668.0,90667.0,0.00226838]
[1765293014078,0.11501357,90668.0,90667.0,0.00226838]
[1765293014297,0.11301357,90668.0,90667.0,0.00226838]
[1765293015760,0.11601357,90668.0,90667.0,0.00226838]
[1765293015970,0.09525357,90668.0,90667.0,0.00226838]
[1765293016120,0.11301357,90668.0,90667.0,0.00226838]
[1765293016320,0.11601357,90668.0,90667.0,0.00226838]
[1765293016648,0.13500355,90668.0,90667.0,0.00226838]
[1765293016881,0.13600355,90668.0,90667.0,0.00226838]
[1765293017009,0.13500355,90668.0,90667.0,0.00226838]
[1765293017417,0.13600355,90668.0,90667.0,0.00226838]
[1765293017863,0.001,90668.0,90667.0,0.00226838]
[1765293018414,0.001,90668.0,90667.0,0.29296838]
[1765293018622,0.01983365,90687.0,90686.0,0.2205412]
[1765293018828,0.01776,90691.0,90688.0,0.01102681]
[1765293019040,0.25353892,90694.0,90690.0,0.23155623]
[1765293019256,0.01102584,90696.0,90690.0,0.23155623]
[1765293019257,0.01776,90693.0,90691.0,0.23155491]
[1765293019465,0.01776,90692.0,90690.0,0.01102657]
[1765293019668,0.01102584,90696.0,90693.0,0.0110262]
[1765293019880,0.01102608,90694.0,90689.0,0.01102669]
[1765293020087,0.01102608,90694.0,90689.0,0.2315606]
[1765293020088,0.23155369,90692.0,90689.0,0.2315606]
[1765293020310,0.001,90694.0,90692.0,0.22052572]
[1765293020515,0.001,90694.0,90688.0,0.01102681]
[1765293020516,0.01102389,90712.0,90707.0,0.0110245]
[1765293020723,0.0936407,90708.0,90706.0,0.22049135]
[1765293020934,0.23151835,90706.0,90703.0,0.01102499]
[1765293021146,0.01102475,90705.0,90696.0,0.01102584]
[1765293021367,0.01102584,90696.0,90691.0,0.22052712]
[1765293021592,0.01102584,90696.0,90670.0,0.60796634]
[1765293021593,0.01102645,90691.0,90685.0,0.23156843]
[1765293021801,0.01776,90690.0,90688.0,0.01102681]
[1765293022010,0.01102523,90701.0,90697.0,0.01102572]
[1765293022218,0.01776,90700.0,90698.0,0.22051055]
[1765293022427,0.22051446,90697.0,90696.0,0.001]
[1765293022634,0.23156531,90688.0,90681.0,0.01102766]
[1765293022890,0.23156395,90688.0,90685.0,0.01114252]
[1765293023102,0.22053983,90687.0,90685.0,0.00011534]
[1765293023414,0.001,90690.0,90688.0,0.22053423]
[1765293023862,0.001,90690.0,90687.0,0.01102693]
[1765293024101,0.02198998,90696.0,90688.0,0.01102681]
[1765293024102,0.01776,90691.0,90688.0,0.01102681]
[1765293024329,0.01102669,90689.0,90685.0,0.00011534]
[1765293024605,0.22054065,90687.0,90685.0,0.00011534]
[1765293024779,0.02198998,90686.0,90685.0,0.00011534]
[1765293025167,0.001,90687.0,90685.0,0.00311534]
[1765293025376,0.01776,90691.0,90688.0,0.01102681]
[1765293025567,0.01102547,90699.0,90695.0,0.23154514]
[1765293025771,0.01102547,90699.0,90692.0,0.01102633]
[1765293025772,0.0287856,90698.0,90694.0,0.23154692]
[1765293025970,0.01102657,90690.0,90685.0,0.01414252]
[1765293026160,0.01776,90689.0,90687.0,0.22053805]
[1765293026557,0.09525357,90708.0,90705.0,0.22049254]
[1765293026784,0.0287845,90707.0,90703.0,0.01102499]
[1765293026986,0.01776,90707.0,90703.0,0.01102499]
[1765293027238,1.1018261,90759.0,90711.0,0.01102402]
[1765293027597,0.01102159,90731.0,90727.0,0.01102207]
[1765293027802,0.01102171,90730.0,90727.0,0.01102207]
[1765293028036,0.22045652,90721.0,90718.0,0.01102317]
[1765293028231,0.01102232,90725.0,90720.0,0.01102292]
[1765293028432,0.01102244,90724.0,90720.0,0.01102292]
[1765293028705,0.23146933,90725.0,90722.0,0.23147589]
[1765293028942,0.22045369,90722.0,90720.0,0.00011534]
[1765293029055,0.24405897,90721.0,90720.0,0.00011534]
[1765293029259,0.22206899,90721.0,90720.0,0.00011534]
[1765293029459,0.28459198,90721.0,90720.0,0.00411534]
[1765293029695,0.22206899,90721.0,90720.0,0.00611534]
[1765293029933,0.22206899,90721.0,90720.0,0.00411534]
[1765293030059,0.23982899,90721.0,90720.0,0.00011534]
[1765293030258,0.23982899,90721.0,90720.0,0.00311534]
[1765293030494,0.22206899,90721.0,90720.0,0.00311534]
[1765293030712,0.23982899,90721.0,90720.0,0.00311534]
[1765293031109,0.24182899,90721.0,90720.0,0.00411534]
[1765293031518,0.23982899,90721.0,90720.0,0.00011534]
[1765293031663,0.24382899,90721.0,90720.0,0.00111534]
[1765293031871,0.22606899,90721.0,90720.0,0.00311534]
[1765293032077,0.23982899,90721.0,90720.0,0.00211534]
[1765293032330,0.24182899,90721.0,90720.0,0.00111534]
[1765293032734,0.23982899,90721.0,90720.0,0.00411534]
[1765293032974,0.24382899,90721.0,90720.0,0.00511534]
[1765293033103,0.24382899,90721.0,90720.0,0.00111534]
[1765293033643,0.24382899,90721.0,90720.0,0.00211534]
[1765293034397,0.23982899,90721.0,90720.0,0.00111534]
[1765293034607,0.24482899,90721.0,90720.0,0.00211534]
[1765293034842,0.24482899,90721.0,90720.0,0.00111534]
[1765293035045,0.23982899,90721.0,90720.0,0.00111534]
[1765293035260,0.24382899,90721.0,90720.0,0.00111534]
[1765293035479,0.24382899,90721.0,90720.0,0.00311534]
[1765293035659,0.23982899,90721.0,90720.0,0.00211534]
[1765293035967,0.24482899,90721.0,90720.0,0.00111534]
[1765293036371,0.23982899,90721.0,90720.0,0.00211534]
[1765293036802,0.23982899,90721.0,90720.0,0.00011534]
[1765293037141,0.23982899,90721.0,90720.0,0.00211534]
[1765293037587,0.24382899,90721.0,90720.0,0.00311534]
[1765293037972,0.23982899,90721.0,90720.0,0.00211534]
[1765293038350,0.59805198,90721.0,90720.0,0.00111534]
[1765293038598,0.59305198,90721.0,90720.0,0.00011534]
[1765293038811,0.59305198,90721.0,90720.0,0.00211534]
[1765293038985,0.59305198,90721.0,90720.0,0.00311534]
[1765293038986,0.59705198,90721.0,90720.0,0.00311534]
[1765293039308,0.23982899,90721.0,90720.0,0.00011534]
[1765293039507,0.24482899,90721.0,90720.0,0.00311534]
[1765293039707,0.30735198,90721.0,90720.0,0.00311534]
[1765293040004,0.30735198,90721.0,90720.0,0.00111534]
[1765293040219,0.59805198,90721.0,90720.0,0.00111534]
[1765293040451,0.65298507,90721.0,90720.0,1e-08]
[1765293040625,0.59805198,90721.0,90720.0,1e-08]
[1765293040984,0.60832907,90721.0,90720.0,1e-08]
[1765293041526,0.84822907,90721.0,90720.0,1e-08]
[1765293041729,0.97073669,90721.0,90720.0,1e-08]
[1765293041960,0.97073669,90721.0,90669.0,5.0]
[1765293041961,0.35422298,90720.0,90669.0,5.0]
[1765293042082,0.22058012,90670.0,90669.0,5.0]
[1765293042286,0.0936407,90677.0,90669.0,5.0]
[1765293042287,0.01102803,90678.0,90669.0,5.0]
[1765293042485,0.31421866,90671.0,90669.0,5.0]
[1765293042885,0.0936407,90671.0,90669.0,5.0]
[1765293043135,0.31421898,90671.0,90669.0,5.0]
[1765293043349,0.09375587,90671.0,90669.0,5.0]
[1765293043544,0.31433401,90671.0,90669.0,5.0]
[1765293043792,0.00011517,90671.0,90669.0,5.22058239]
[1765293043963,0.00011517,90671.0,90669.0,5.0]
[1765293044162,0.00011517,90671.0,90670.0,0.22058012]
[1765293045649,0.00111517,90671.0,90670.0,0.22058012]
[1765293045814,0.00111517,90671.0,90670.0,0.22558012]
[1765293046366,0.00111517,90671.0,90670.0,0.22058012]
[1765293046565,0.00111517,90671.0,90670.0,0.22658012]
[1765293047322,0.00011517,90671.0,90670.0,0.55627404]
[1765293047556,0.00211517,90671.0,90670.0,0.51728012]
[1765293047723,0.00211517,90671.0,90670.0,0.51128012]
[1765293047926,0.00011517,90671.0,90670.0,0.51128012]
[1765293048157,0.00211517,90671.0,90670.0,0.51628012]
[1765293048500,0.00211517,90671.0,90670.0,0.51128012]
[1765293048898,0.00211517,90671.0,90670.0,0.51728012]
[1765293049555,0.01776,90702.0,90701.0,0.22050473]
[1765293049758,0.01102426,90709.0,90705.0,0.01102475]
[1765293049954,0.01102475,90705.0,90701.0,0.2315288]
[1765293050185,0.01102475,90705.0,90702.0,0.01102511]
[1765293050489,0.01102475,90705.0,90700.0,0.01102535]
[1765293050490,0.01102487,90704.0,90700.0,0.01102535]
[1765293050619,0.01102462,90706.0,90702.0,0.2315267]
[1765293050821,0.01102475,90705.0,90699.0,0.01102547]
[1765293051150,0.01102499,90703.0,90700.0,0.01102535]
[1765293051336,0.004,90702.0,90701.0,0.2205046]
[1765293051536,0.00011581,90709.0,90708.0,0.22048771]
[1765293051749,0.00011581,90709.0,90695.0,0.03916458]
[1765293051940,0.00011581,90709.0,90694.0,0.03916458]
[1765293052136,0.23152996,90701.0,90699.0,0.002]
[1765293052707,0.01102596,90695.0,90692.0,0.23155279]
[1765293052824,0.01102584,90696.0,90693.0,0.23155014]
[1765293053034,0.01102633,90692.0,90688.0,0.03916458]
[1765293053251,0.01102693,90687.0,90684.0,0.05019188]
[1765293053455,0.22053664,90688.0,90684.0,0.0110273]
[1765293053702,0.01102669,90689.0,90686.0,0.22054084]
[1765293053703,0.22053461,90689.0,90686.0,0.22054084]
[1765293053888,0.01102657,90690.0,90687.0,0.2315655]
[1765293054085,0.01102657,90690.0,90686.0,0.01102706]
[1765293054413,0.001,90692.0,90691.0,0.22052904]
[1765293054611,0.01102596,90695.0,90693.0,0.22052392]
[1765293055158,0.22050959,90699.0,90694.0,0.22052088]
[1765293055366,0.0110256,90698.0,90693.0,0.0110262]
[1765293055577,0.22051992,90695.0,90693.0,0.0110262]
[1765293055781,0.01102608,90694.0,90691.0,0.007]
[1765293055979,0.22052418,90693.0,90691.0,0.007]
[1765293056383,0.22052661,90692.0,90691.0,0.007]
[1765293056609,0.35221197,90692.0,90691.0,0.007]
[1765293056812,0.3766903,90692.0,90691.0,0.003]
[1765293057651,0.3816903,90692.0,90691.0,0.004]
[1765293057809,0.3816903,90692.0,90691.0,0.001]
[1765293058560,0.22058012,90670.0,90669.0,5.0]
[1765293059005,0.31422082,90670.0,90669.0,5.0]
[1765293059833,0.31422082,90670.0,90669.0,5.004]
[1765293060423,0.22057142,90674.0,90671.0,0.01102888]
[1765293060620,0.0936407,90672.0,90671.0,0.01102888]
[1765293060860,0.001,90670.0,90669.0,5.006]
[1765293061060,0.001,90670.0,90669.0,5.002]
[1765293061264,0.24936297,90673.0,90669.0,5.0]
[1765293061471,0.22057803,90671.0,90669.0,5.003]
[1765293061911,0.2221909,90671.0,90669.0,5.003]
[1765293062159,0.34750525,90670.0,90669.0,5.0]
[1765293062370,0.41002824,90670.0,90669.0,4.35100126]
[1765293062564,0.44847656,90670.0,90669.0,4.06127967]
[1765293062803,0.45877513,90670.0,90669.0,4.06127967]
[1765293063027,0.45877513,90670.0,90669.0,4.05827967]
[1765293063212,0.44847656,90670.0,90669.0,4.05827967]
[1765293063778,0.44947656,90670.0,90669.0,4.06027967]
[1765293064181,0.47107869,90670.0,90669.0,4.05827967]
[1765293064381,0.45647656,90670.0,90669.0,4.06027967]
[1765293064578,0.45647656,90670.0,90669.0,4.05827967]
[1765293064767,0.44947656,90670.0,90669.0,4.05827967]
[1765293064964,0.44947656,90670.0,90669.0,3.36891179]
[1765293064965,0.45647656,90670.0,90669.0,3.36891179]
[1765293065219,0.57726783,90670.0,90669.0,3.27000571]
[1765293065363,0.57726783,90670.0,90669.0,3.11776887]
[1765293065563,0.46576021,90670.0,90669.0,3.11776887]
[1765293065995,0.47523656,90670.0,90669.0,3.11776887]
[1765293066956,0.47850852,90670.0,90669.0,2.29057746]
[1765293067164,0.96066452,90670.0,90669.0,1.97607611]
[1765293067314,1.06117214,90670.0,90669.0,1.8966549]
[1765293067515,1.06117214,90670.0,90669.0,1.75872595]
[1765293067718,1.06317214,90670.0,90669.0,1.66929009]
[1765293067902,0.11552553,90670.0,90669.0,1.66929009]
[1765293068103,0.12101357,90670.0,90669.0,1.66929009]
[1765293068353,0.47423656,90670.0,90669.0,1.66929009]
[1765293068566,0.48723656,90670.0,90669.0,1.66929009]
[1765293068966,0.48423656,90670.0,90669.0,1.66929009]
[1765293069204,0.48623656,90670.0,90669.0,1.66929009]
[1765293069805,0.46823656,90670.0,90669.0,1.66929009]
[1765293070004,0.47523656,90670.0,90669.0,1.66929009]
[1765293070526,0.47649163,90670.0,90669.0,1.66929009]
[1765293070683,0.47523656,90670.0,90669.0,1.66929009]
[1765293070890,0.48549197,90670.0,90669.0,1.66929009]
[1765293071125,0.48549197,90670.0,90669.0,0.90983928]
[1765293071126,1.07041097,90670.0,90669.0,0.90983928]
[1765293071453,1.06141097,90670.0,90669.0,0.69926005]
[1765293071662,0.47749197,90670.0,90669.0,0.67072866]
[1765293071957,0.60848597,90670.0,90669.0,0.67072866]
[1765293072191,0.60748597,90670.0,90669.0,0.67072866]
[1765293072364,0.60948597,90670.0,90669.0,0.67072866]
[1765293072570,0.19579197,90670.0,90669.0,0.67072866]
[1765293072770,0.20752654,90670.0,90669.0,0.67072866]
[1765293072970,0.49022654,90670.0,90669.0,0.67072866]
[1765293073173,0.17753656,90670.0,90669.0,0.67072866]
[1765293073380,0.20752654,90670.0,90669.0,0.67072866]
[1765293073541,0.48822654,90670.0,90669.0,0.67072866]
[1765293073896,0.47923656,90670.0,90669.0,0.67072866]
[1765293074526,0.41171357,90670.0,90669.0,0.67072866]
[1765293074726,0.47723656,90670.0,90669.0,0.67072866]
[1765293076203,0.18653656,90670.0,90669.0,0.67072866]
[1765293076435,0.49922654,90670.0,90669.0,0.67072866]
[1765293076639,0.41471357,90670.0,90669.0,0.67072866]
[1765293076840,0.47723656,90670.0,90669.0,0.67072866]
[1765293077262,0.72213656,90670.0,90669.0,0.67072866]
[1765293078518,0.1224007,90670.0,90669.0,0.67072866]
[1765293078717,0.011,90670.0,90669.0,0.67072866]
[1765293079674,0.01776,90686.0,90684.0,0.22054526]
[1765293079886,0.01776,90695.0,90694.0,0.01102608]
[1765293080116,0.01102742,90683.0,90670.0,0.2907]
[1765293080285,0.03301606,90694.0,90682.0,0.01102754]
[1765293080664,0.02198998,90694.0,90684.0,0.2315726]
[1765293080904,0.10466532,90706.0,90680.0,0.4147622]
[1765293081110,0.03974998,90705.0,90698.0,0.0110256]
[1765293081336,0.00011579,90706.0,90704.0,0.22049604]
[1765293081540,0.01787579,90706.0,90703.0,0.01102499]
[1765293081771,0.01787579,90706.0,90702.0,0.01102511]
[1765293082010,0.01787579,90706.0,90704.0,0.22049604]
[1765293082216,0.00011579,90706.0,90698.0,0.0110256]
[1765293082423,0.00011579,90706.0,90685.0,0.22054236]
[1765293082424,0.02371864,90706.0,90685.0,0.22054236]
[1765293082604,0.02371864,90706.0,90692.0,0.01102633]
[1765293082605,0.0936407,90701.0,90692.0,0.01102633]
[1765293082762,0.02198998,90700.0,90697.0,0.01102572]
[1765293082958,0.02198998,90700.0,90692.0,0.01102633]
[1765293083236,0.01102547,90699.0,90689.0,0.01102669]
[1765293083474,0.02198998,90698.0,90691.0,0.01102645]
[1765293083814,0.0936407,90701.0,90691.0,0.22052751]
[1765293083815,0.02198998,90700.0,90691.0,0.22052751]
[1765293084019,0.02298998,90700.0,90692.0,0.01102633]
[1765293084425,0.03301533,90700.0,90691.0,0.23155396]
[1765293084627,0.001,90698.0,90694.0,0.01102608]
[1765293084824,0.001,90698.0,90695.0,0.01102596]
[1765293085108,0.001,90698.0,90696.0,0.2205153]
[1765293085294,0.0936407,90697.0,90694.0,0.23154573]
[1765293085577,0.0936407,90697.0,90695.0,0.22051846]
[1765293085928,0.02371864,90706.0,90705.0,0.22049501]
[1765293085929,0.00011579,90706.0,90705.0,0.22049501]
[1765293087598,0.00211579,90706.0,90705.0,0.22049501]
[1765293087798,0.00011579,90706.0,90705.0,0.22349501]
[1765293088407,0.00011579,90706.0,90705.0,0.51419501]
[1765293088829,0.00011579,90706.0,90705.0,0.51119501]
[1765293089054,0.00011579,90706.0,90705.0,0.51519501]
[1765293089260,0.00111579,90706.0,90705.0,0.52019501]